[Event "Live Chess"]
[Site "Chess.com"]
[Date "2024.06.02"]
[Round "-"]
[White "ShanthamGrarks"]
[Black "NeilDruggan73"]
[Result "1-0"]
[WhiteElo "1811"]
[BlackElo "1740"]
[TimeControl "300"]
[EndTime "16:11:19 PDT"]
[Termination "ShanthamGrarks won by resignation"]

1. d4 {[%clk 0:04:56.7]} 1... Nf6 {[%clk 0:04:57.5]} 2. Nc3 {[%clk 0:04:55.3]}
2... g6 {[%clk 0:04:56]} 3. Bf4 {[%clk 0:04:54.7]} 3... Bg7 {[%clk 0:04:55.3]}
4. e4 {[%clk 0:04:53.8]} 4... d6 {[%clk 0:04:52.1]} 5. h4 {[%clk 0:04:52.3]}
5... h5 {[%clk 0:04:49.7]} 6. Be2 {[%clk 0:04:50.8]} 6... Nc6 {[%clk 0:04:48.1]}
7. Nf3 {[%clk 0:04:48.6]} 7... b6 {[%clk 0:04:46.6]} 8. d5 {[%clk 0:04:46.3]}
8... Nb8 {[%clk 0:04:41.6]} 9. Ng5 {[%clk 0:04:42.4]} 9... Nbd7 {[%clk
0:04:40.1]} 10. g4 {[%clk 0:04:38.9]} 10... Ne5 {[%clk 0:04:35.7]} 11. Bxe5
{[%clk 0:04:36.7]} 11... dxe5 {[%clk 0:04:33.9]} 12. gxh5 {[%clk 0:04:35.4]}
12... Nxh5 {[%clk 0:04:31.6]} 13. Bxh5 {[%clk 0:04:34.1]} 13... Rxh5 {[%clk
0:04:29.2]} 14. Qf3 {[%clk 0:04:31.8]} 14... f6 {[%clk 0:04:11.6]} 15. Ne6
{[%clk 0:04:29.2]} 15... Bxe6 {[%clk 0:04:09.6]} 16. dxe6 {[%clk 0:04:29.1]}
16... c6 {[%clk 0:03:56.8]} 17. Rd1 {[%clk 0:04:27.6]} 17... Qc8 {[%clk
0:03:55]} 18. Rd7 {[%clk 0:04:25.4]} 18... b5 {[%clk 0:03:30.4]} 19. Rg1 {[%clk
0:04:19.2]} 19... Rh6 {[%clk 0:03:17.8]} 20. Rxg6 {[%clk 0:04:15.6]} 20... Rxg6
{[%clk 0:03:08.3]} 21. Qh5 {[%clk 0:04:13.9]} 21... Qxd7 {[%clk 0:03:05.7]} 22.
Qxg6+ {[%clk 0:03:59.8]} 22... Kd8 {[%clk 0:03:04.5]} 23. exd7 {[%clk
0:03:58.7]} 1-0

[Event "Live Chess"]
[Site "Chess.com"]
[Date "2024.06.02"]
[Round "-"]
[White "MagnersCarlsberg2870"]
[Black "GwaryTek"]
[Result "1-0"]
[WhiteElo "1776"]
[BlackElo "1907"]
[TimeControl "300"]
[EndTime "16:11:34 PDT"]
[Termination "MagnersCarlsberg2870 won by resignation"]

1. d4 {[%clk 0:04:57.6]} 1... Nf6 {[%clk 0:04:56.2]} 2. Nf3 {[%clk 0:04:56.2]}
2... c5 {[%clk 0:04:53.8]} 3. e3 {[%clk 0:04:54.4]} 3... cxd4 {[%clk 0:04:53]}
4. exd4 {[%clk 0:04:53.3]} 4... d5 {[%clk 0:04:52.9]} 5. Bd3 {[%clk 0:04:52.2]}
5... Nc6 {[%clk 0:04:52.8]} 6. c3 {[%clk 0:04:50.9]} 6... Bg4 {[%clk 0:04:52.7]}
7. O-O {[%clk 0:04:47.8]} 7... e6 {[%clk 0:04:52.6]} 8. Qe1 {[%clk 0:04:46.7]}
8... Bd6 {[%clk 0:04:52.5]} 9. Ne5 {[%clk 0:04:44]} 9... Bf3 {[%clk 0:04:52.4]}
10. Nxf3 {[%clk 0:04:42.3]} 10... Qb6 {[%clk 0:04:35.4]} 11. Ng5 {[%clk
0:04:31.2]} 11... O-O-O {[%clk 0:04:32.3]} 12. b4 {[%clk 0:04:23.9]} 12... Rhf8
{[%clk 0:04:29.7]} 13. b5 {[%clk 0:04:22.2]} 13... Ne7 {[%clk 0:04:27.4]} 14. a4
{[%clk 0:04:20.5]} 14... Bb8 {[%clk 0:04:25.3]} 15. a5 {[%clk 0:04:19]} 15...
Qd6 {[%clk 0:04:24.1]} 16. Nf3 {[%clk 0:04:10.8]} 16... Ng6 {[%clk 0:04:17.8]}
17. Ba3 {[%clk 0:04:05.6]} 17... Qc7 {[%clk 0:04:13.8]} 18. Bxf8 {[%clk
0:04:03.8]} 18... Nh4 {[%clk 0:04:13]} 19. Ne5 {[%clk 0:03:54.1]} 19... Rxf8
{[%clk 0:04:09.8]} 20. b6 {[%clk 0:03:52.1]} 20... Qd6 {[%clk 0:04:05.8]} 21.
bxa7 {[%clk 0:03:48]} 21... Bxa7 {[%clk 0:04:04.6]} 22. a6 {[%clk 0:03:47]}
22... b6 {[%clk 0:04:02.6]} 23. Na3 {[%clk 0:03:43.9]} 23... Nd7 {[%clk
0:02:08.4]} 24. Nb5 {[%clk 0:03:38.5]} 24... Qb8 {[%clk 0:02:07.2]} 25. Nxa7+
{[%clk 0:03:29.8]} 25... Qxa7 {[%clk 0:02:04.8]} 26. f4 {[%clk 0:03:18.4]} 26...
Ng6 {[%clk 0:01:57.3]} 27. Nxd7 {[%clk 0:03:13.5]} 27... Kxd7 {[%clk 0:01:54.7]}
28. Bb5+ {[%clk 0:03:12.4]} 1-0

[Event "Live Chess"]
[Site "Chess.com"]
[Date "2024.06.02"]
[Round "-"]
[White "Yegorych"]
[Black "MaksymYurii"]
[Result "1-0"]
[WhiteElo "1556"]
[BlackElo "952"]
[TimeControl "300"]
[EndTime "16:11:45 PDT"]
[Termination "Yegorych won on time"]

1. d4 {[%clk 0:04:54]} 1... d5 {[%clk 0:04:58.5]} 2. c4 {[%clk 0:04:51.8]} 2...
dxc4 {[%clk 0:04:55.8]} 3. Nc3 {[%clk 0:04:49.5]} 3... Nf6 {[%clk 0:04:54.7]} 4.
Bg5 {[%clk 0:04:43.9]} 4... h6 {[%clk 0:04:52.1]} 5. Bxf6 {[%clk 0:04:41.6]}
5... exf6 {[%clk 0:04:50.9]} 6. e3 {[%clk 0:04:40.7]} 6... Be7 {[%clk
0:04:49.6]} 7. Bxc4 {[%clk 0:04:36.7]} 7... O-O {[%clk 0:04:47.8]} 8. Nf3 {[%clk
0:04:34.6]} 8... Nc6 {[%clk 0:04:44.7]} 9. O-O {[%clk 0:04:31.7]} 9... Bd6
{[%clk 0:04:37.4]} 10. Nh4 {[%clk 0:04:27.9]} 10... b6 {[%clk 0:04:33.6]} 11.
Qb3 {[%clk 0:04:16.7]} 11... Na5 {[%clk 0:04:18.8]} 12. Qa4 {[%clk 0:04:06.2]}
12... Bd7 {[%clk 0:03:56.9]} 13. Bb5 {[%clk 0:03:57.5]} 13... c6 {[%clk
0:03:49.9]} 14. Bd3 {[%clk 0:03:54.8]} 14... c5 {[%clk 0:03:35.3]} 15. Qc2
{[%clk 0:03:50.8]} 15... f5 {[%clk 0:02:59.8]} 16. Nxf5 {[%clk 0:03:45.8]} 16...
c4 {[%clk 0:02:54.7]} 17. Be4 {[%clk 0:03:37.1]} 17... Bc6 {[%clk 0:02:16.1]}
18. Bxc6 {[%clk 0:03:02.5]} 18... Nxc6 {[%clk 0:02:10.3]} 19. Ne4 {[%clk
0:02:48.3]} 19... Nb4 {[%clk 0:01:57.8]} 20. Qxc4 {[%clk 0:02:37.5]} 20... Bxh2+
{[%clk 0:01:21.7]} 21. Kxh2 {[%clk 0:02:30.2]} 21... a5 {[%clk 0:01:15.5]} 22.
Qe2 {[%clk 0:02:18.7]} 22... g6 {[%clk 0:01:11.4]} 23. Nxh6+ {[%clk 0:02:08.6]}
23... Kg7 {[%clk 0:01:07.5]} 24. Rh1 {[%clk 0:01:45.4]} 24... Qh4+ {[%clk
0:00:58.3]} 25. Kg1 {[%clk 0:01:40.9]} 25... Qxe4 {[%clk 0:00:54.9]} 26. Qc4
{[%clk 0:01:17.5]} 26... Rac8 {[%clk 0:00:22.4]} 27. Qb5 {[%clk 0:00:58.3]}
27... Rh8 {[%clk 0:00:10.4]} 28. Qd7 {[%clk 0:00:38.5]} 28... Rxh6 {[%clk
0:00:07.5]} 29. Rxh6 {[%clk 0:00:32.3]} 29... Kxh6 {[%clk 0:00:04.1]} 30. Qxc8
{[%clk 0:00:30.1]} 30... Nd3 {[%clk 0:00:01.3]} 31. Qh3+ {[%clk 0:00:26.4]}
31... Kg7 {[%clk 0:00:00.8]} 32. Qf3 {[%clk 0:00:21.4]} 1-0

[Event "Live Chess"]
[Site "Chess.com"]
[Date "2024.06.02"]
[Round "-"]
[White "Cruiseylee78"]
[Black "TedUdale"]
[Result "0-1"]
[WhiteElo "1692"]
[BlackElo "2105"]
[TimeControl "300"]
[EndTime "16:11:47 PDT"]
[Termination "TedUdale won by checkmate"]

1. d4 {[%clk 0:04:58.5]} 1... d5 {[%clk 0:04:53]} 2. Bf4 {[%clk 0:04:50.9]} 2...
Nf6 {[%clk 0:04:51.5]} 3. e3 {[%clk 0:04:50.8]} 3... h5 {[%clk 0:04:48.4]} 4.
Nf3 {[%clk 0:04:49.4]} 4... Bg4 {[%clk 0:04:45.5]} 5. Nbd2 {[%clk 0:04:47.7]}
5... Nbd7 {[%clk 0:04:43.2]} 6. Bd3 {[%clk 0:04:46.5]} 6... e6 {[%clk
0:04:42.4]} 7. c3 {[%clk 0:04:45.5]} 7... c5 {[%clk 0:04:41]} 8. Qc2 {[%clk
0:04:44.6]} 8... Rc8 {[%clk 0:04:39.7]} 9. h3 {[%clk 0:04:28.4]} 9... Bxf3
{[%clk 0:04:37]} 10. Nxf3 {[%clk 0:04:26.3]} 10... Be7 {[%clk 0:04:29.6]} 11.
Ne5 {[%clk 0:04:20.4]} 11... Nxe5 {[%clk 0:04:26.7]} 12. Bxe5 {[%clk 0:04:20.3]}
12... cxd4 {[%clk 0:04:24.3]} 13. exd4 {[%clk 0:04:19.2]} 13... Nd7 {[%clk
0:04:13.1]} 14. f4 {[%clk 0:04:15.4]} 14... Nxe5 {[%clk 0:04:11.6]} 15. fxe5
{[%clk 0:04:11.9]} 15... Bh4+ {[%clk 0:04:09.6]} 16. Kd2 {[%clk 0:04:08.9]}
16... Qg5+ {[%clk 0:04:06.7]} 17. Ke2 {[%clk 0:03:56.1]} 17... Qxg2+ {[%clk
0:04:04.6]} 18. Ke3 {[%clk 0:03:53.8]} 18... Bg5# {[%clk 0:04:01.1]} 0-1

[Event "Live Chess"]
[Site "Chess.com"]
[Date "2024.06.02"]
[Round "-"]
[White "hapehansen"]
[Black "vincents82"]
[Result "1-0"]
[WhiteElo "2252"]
[BlackElo "2046"]
[TimeControl "300"]
[EndTime "16:11:55 PDT"]
[Termination "hapehansen won by checkmate"]

1. Nf3 {[%clk 0:04:55.9]} 1... d5 {[%clk 0:04:58.9]} 2. c4 {[%clk 0:04:55.1]}
2... c6 {[%clk 0:04:55.8]} 3. b3 {[%clk 0:04:52.3]} 3... Nf6 {[%clk 0:04:54.5]}
4. Bb2 {[%clk 0:04:51.7]} 4... Bf5 {[%clk 0:04:53.1]} 5. g3 {[%clk 0:04:47.5]}
5... e6 {[%clk 0:04:51.4]} 6. Bg2 {[%clk 0:04:47.1]} 6... Nbd7 {[%clk
0:04:50.7]} 7. d3 {[%clk 0:04:46.5]} 7... Be7 {[%clk 0:04:49.9]} 8. Nbd2 {[%clk
0:04:45.9]} 8... h6 {[%clk 0:04:49.3]} 9. e4 {[%clk 0:04:41.4]} 9... Bh7 {[%clk
0:04:43.3]} 10. e5 {[%clk 0:04:32.6]} 10... Ng8 {[%clk 0:04:40.1]} 11. Qe2
{[%clk 0:04:25.5]} 11... Nc5 {[%clk 0:04:38.3]} 12. O-O {[%clk 0:04:10.4]} 12...
Bxd3 {[%clk 0:04:35.5]} 13. Qe3 {[%clk 0:04:07.4]} 13... Bxf1 {[%clk 0:04:34.2]}
14. Rxf1 {[%clk 0:04:07]} 14... Bg5 {[%clk 0:04:32.6]} 15. Qxc5 {[%clk 0:04:01]}
15... Bxd2 {[%clk 0:04:25.9]} 16. Nxd2 {[%clk 0:03:58.3]} 16... Ne7 {[%clk
0:04:25.3]} 17. Ba3 {[%clk 0:03:52]} 17... b6 {[%clk 0:04:23]} 18. Qd6 {[%clk
0:03:48.1]} 18... Qxd6 {[%clk 0:04:20.3]} 19. exd6 {[%clk 0:03:46]} 19... Nc8
{[%clk 0:04:18.2]} 20. cxd5 {[%clk 0:03:40.8]} 20... exd5 {[%clk 0:04:17.1]} 21.
Re1+ {[%clk 0:03:37.6]} 21... Kd7 {[%clk 0:04:16.4]} 22. Bh3+ {[%clk 0:03:36]}
22... Kd8 {[%clk 0:04:10.3]} 23. Nf3 {[%clk 0:03:31.6]} 23... c5 {[%clk
0:04:05.7]} 24. Ne5 {[%clk 0:03:28.9]} 24... Rf8 {[%clk 0:04:04.8]} 25. Nc6#
{[%clk 0:03:24.9]} 1-0

[Event "Live Chess"]
[Site "Chess.com"]
[Date "2024.06.02"]
[Round "-"]
[White "wadsy27"]
[Black "raclement"]
[Result "1-0"]
[WhiteElo "2569"]
[BlackElo "1729"]
[TimeControl "300"]
[EndTime "16:12:03 PDT"]
[Termination "wadsy27 won by resignation"]

1. Nf3 {[%clk 0:04:58.4]} 1... Nf6 {[%clk 0:04:52.8]} 2. g3 {[%clk 0:04:56.9]}
2... g6 {[%clk 0:04:50.2]} 3. Bg2 {[%clk 0:04:55.8]} 3... Bg7 {[%clk 0:04:47.8]}
4. O-O {[%clk 0:04:53.2]} 4... O-O {[%clk 0:04:38.9]} 5. c4 {[%clk 0:04:52.2]}
5... c5 {[%clk 0:04:33.4]} 6. d4 {[%clk 0:04:46.2]} 6... cxd4 {[%clk 0:04:26.4]}
7. Nxd4 {[%clk 0:04:44.8]} 7... Nc6 {[%clk 0:04:25.1]} 8. Nc3 {[%clk 0:04:44]}
8... Nxd4 {[%clk 0:04:22]} 9. Qxd4 {[%clk 0:04:43]} 9... d6 {[%clk 0:04:20.8]}
10. Qd3 {[%clk 0:04:41.2]} 10... Bf5 {[%clk 0:04:17.4]} 11. e4 {[%clk
0:04:39.4]} 11... Be6 {[%clk 0:04:12.9]} 12. b3 {[%clk 0:04:38.6]} 12... Rc8
{[%clk 0:04:11]} 13. Bd2 {[%clk 0:04:36.3]} 13... a6 {[%clk 0:04:09.7]} 14. Rad1
{[%clk 0:04:34.6]} 14... Ng4 {[%clk 0:04:01.4]} 15. h3 {[%clk 0:04:30.8]} 15...
Ne5 {[%clk 0:03:59.7]} 16. Qe2 {[%clk 0:04:30.3]} 16... Nc6 {[%clk 0:03:53]} 17.
f4 {[%clk 0:04:13.3]} 17... Nd4 {[%clk 0:03:48]} 18. Qd3 {[%clk 0:04:12.1]}
18... b5 {[%clk 0:03:41.6]} 19. cxb5 {[%clk 0:04:02.4]} 19... axb5 {[%clk
0:03:33.9]} 20. f5 {[%clk 0:04:01.5]} 20... Bd7 {[%clk 0:03:29]} 21. f6 {[%clk
0:03:54.9]} 21... Bxf6 {[%clk 0:03:06.8]} 22. Rxf6 {[%clk 0:03:52.7]} 22... exf6
{[%clk 0:03:02]} 23. Qxd4 {[%clk 0:03:51.7]} 23... Be6 {[%clk 0:02:54.2]} 24.
Bh6 {[%clk 0:03:49.4]} 24... Re8 {[%clk 0:02:51.4]} 25. Nd5 {[%clk 0:03:45.1]}
25... Bxd5 {[%clk 0:02:49.4]} 26. exd5 {[%clk 0:03:44.2]} 26... Re5 {[%clk
0:02:47.5]} 27. Kh2 {[%clk 0:03:39.4]} 27... Qe7 {[%clk 0:02:40.8]} 28. Rd2
{[%clk 0:03:33.8]} 28... Rc1 {[%clk 0:02:36.8]} 29. Rf2 {[%clk 0:03:31.3]} 29...
f5 {[%clk 0:02:26.9]} 30. Bxc1 {[%clk 0:03:26.9]} 30... Re2 {[%clk 0:02:20.1]}
31. Rxe2 {[%clk 0:03:17.1]} 31... Qxe2 {[%clk 0:02:17]} 32. Bb2 {[%clk
0:03:16.6]} 1-0

[Event "Live Chess"]
[Site "Chess.com"]
[Date "2024.06.02"]
[Round "-"]
[White "cymbalshift"]
[Black "grillage"]
[Result "1-0"]
[WhiteElo "1719"]
[BlackElo "1853"]
[TimeControl "300"]
[EndTime "16:12:13 PDT"]
[Termination "cymbalshift won by resignation"]

1. d4 {[%clk 0:04:58.2]} 1... e6 {[%clk 0:04:57.7]} 2. c4 {[%clk 0:04:56.5]}
2... Bb4+ {[%clk 0:04:56.2]} 3. Nc3 {[%clk 0:04:54.8]} 3... c5 {[%clk 0:04:54]}
4. d5 {[%clk 0:04:50.5]} 4... d6 {[%clk 0:04:51.9]} 5. g3 {[%clk 0:04:43.6]}
5... e5 {[%clk 0:04:49.9]} 6. Bg2 {[%clk 0:04:42.6]} 6... f5 {[%clk 0:04:47.4]}
7. Qc2 {[%clk 0:04:40.8]} 7... Nf6 {[%clk 0:04:44.1]} 8. Nf3 {[%clk 0:04:37.2]}
8... Ne4 {[%clk 0:04:36.9]} 9. O-O {[%clk 0:04:36.2]} 9... Bxc3 {[%clk
0:04:33.9]} 10. bxc3 {[%clk 0:04:36.1]} 10... O-O {[%clk 0:04:31.9]} 11. h4
{[%clk 0:04:18.5]} 11... Nf6 {[%clk 0:04:20.3]} 12. Bg5 {[%clk 0:04:07.7]} 12...
Qe8 {[%clk 0:04:18.7]} 13. Bh3 {[%clk 0:03:56.3]} 13... Ne4 {[%clk 0:04:12.3]}
14. Be3 {[%clk 0:03:47.1]} 14... b6 {[%clk 0:03:38.6]} 15. Ne1 {[%clk
0:03:37.9]} 15... Qa4 {[%clk 0:03:27.2]} 16. Qxa4 {[%clk 0:03:31.9]} 1-0

[Event "Live Chess"]
[Site "Chess.com"]
[Date "2024.06.02"]
[Round "-"]
[White "TigerTank70"]
[Black "CheckThis4"]
[Result "0-1"]
[WhiteElo "2237"]
[BlackElo "2690"]
[TimeControl "300"]
[EndTime "16:12:17 PDT"]
[Termination "CheckThis4 won by resignation"]

1. e4 {[%clk 0:04:56.6]} 1... e6 {[%clk 0:04:55.6]} 2. d4 {[%clk 0:04:55.1]}
2... d5 {[%clk 0:04:51.9]} 3. exd5 {[%clk 0:04:44.1]} 3... exd5 {[%clk
0:04:48.3]} 4. Nf3 {[%clk 0:04:43.3]} 4... Nc6 {[%clk 0:04:40.6]} 5. Be2 {[%clk
0:04:42.1]} 5... Bd6 {[%clk 0:04:30.3]} 6. O-O {[%clk 0:04:26.3]} 6... Nge7
{[%clk 0:04:16.2]} 7. c4 {[%clk 0:04:16.8]} 7... dxc4 {[%clk 0:04:10.3]} 8. Bxc4
{[%clk 0:04:09.9]} 8... O-O {[%clk 0:04:03.3]} 9. Bg5 {[%clk 0:04:05.6]} 9...
Bg4 {[%clk 0:03:54.3]} 10. d5 {[%clk 0:03:52.3]} 10... Ne5 {[%clk 0:03:50.4]}
11. Be2 {[%clk 0:03:50.8]} 11... Nxf3+ {[%clk 0:03:45.9]} 12. Bxf3 {[%clk
0:03:50.7]} 12... Bxf3 {[%clk 0:03:40.5]} 13. Qxf3 {[%clk 0:03:50.6]} 13... h6
{[%clk 0:03:36.1]} 14. Bh4 {[%clk 0:03:47.2]} 14... Qd7 {[%clk 0:03:22.3]} 15.
Nc3 {[%clk 0:03:43.6]} 15... Nf5 {[%clk 0:03:20.4]} 16. Bg3 {[%clk 0:03:37.8]}
16... Nxg3 {[%clk 0:03:18.3]} 17. hxg3 {[%clk 0:03:37.7]} 17... Rfe8 {[%clk
0:03:15.1]} 18. Rfe1 {[%clk 0:03:36.7]} 18... a6 {[%clk 0:03:13.1]} 19. Rad1
{[%clk 0:03:22.1]} 19... Rxe1+ {[%clk 0:03:07.6]} 20. Rxe1 {[%clk 0:03:20.8]}
20... Re8 {[%clk 0:03:07.2]} 21. Ne4 {[%clk 0:03:08.6]} 21... f5 {[%clk
0:02:43.3]} 0-1

[Event "Live Chess"]
[Site "Chess.com"]
[Date "2024.06.02"]
[Round "-"]
[White "nigelst"]
[Black "Duke_of_Bebington"]
[Result "1-0"]
[WhiteElo "1701"]
[BlackElo "1645"]
[TimeControl "300"]
[EndTime "16:12:27 PDT"]
[Termination "nigelst won by checkmate"]

1. e4 {[%clk 0:04:57.2]} 1... e5 {[%clk 0:04:58.8]} 2. Nf3 {[%clk 0:04:56.1]}
2... Nf6 {[%clk 0:04:58]} 3. Nxe5 {[%clk 0:04:51.9]} 3... d6 {[%clk 0:04:56.2]}
4. Nf3 {[%clk 0:04:47.9]} 4... Nxe4 {[%clk 0:04:54.9]} 5. Bd3 {[%clk 0:04:46.6]}
5... d5 {[%clk 0:04:52.5]} 6. O-O {[%clk 0:04:43.8]} 6... Bg4 {[%clk 0:04:49.5]}
7. Re1 {[%clk 0:04:41.3]} 7... f5 {[%clk 0:04:42.4]} 8. h3 {[%clk 0:04:39.2]}
8... Bh5 {[%clk 0:04:41.1]} 9. Bf1 {[%clk 0:04:23]} 9... Bd6 {[%clk 0:04:32.5]}
10. d3 {[%clk 0:04:21.5]} 10... O-O {[%clk 0:04:25.2]} 11. dxe4 {[%clk
0:04:15.2]} 11... fxe4 {[%clk 0:04:24.1]} 12. Qxd5+ {[%clk 0:04:13.5]} 12... Bf7
{[%clk 0:04:19.9]} 13. Qxe4 {[%clk 0:04:08.9]} 13... Nc6 {[%clk 0:04:09.5]} 14.
Bg5 {[%clk 0:04:05.9]} 14... Qd7 {[%clk 0:04:06.6]} 15. Bb5 {[%clk 0:03:55.5]}
15... Rae8 {[%clk 0:04:00.9]} 16. Qg4 {[%clk 0:03:43.8]} 16... Qxg4 {[%clk
0:03:42.9]} 17. hxg4 {[%clk 0:03:41.5]} 17... Bd5 {[%clk 0:03:38.2]} 18. Nc3
{[%clk 0:03:37.5]} 18... Bxf3 {[%clk 0:03:31.2]} 19. gxf3 {[%clk 0:03:36]} 19...
Rxe1+ {[%clk 0:03:29.9]} 20. Rxe1 {[%clk 0:03:32.3]} 20... Rxf3 {[%clk
0:03:29.4]} 21. Bxc6 {[%clk 0:03:21.9]} 21... bxc6 {[%clk 0:03:28.1]} 22. Ne4
{[%clk 0:03:11.9]} 22... Kf7 {[%clk 0:03:16]} 23. Nxd6+ {[%clk 0:03:10.2]} 23...
cxd6 {[%clk 0:03:15]} 24. Be3 {[%clk 0:03:08.1]} 24... a6 {[%clk 0:03:12.3]} 25.
Rd1 {[%clk 0:03:04.4]} 25... Ke6 {[%clk 0:03:10.6]} 26. Kg2 {[%clk 0:02:59.5]}
26... Rf7 {[%clk 0:03:08.8]} 27. Rh1 {[%clk 0:02:57.8]} 27... h6 {[%clk
0:03:07.6]} 28. Re1 {[%clk 0:02:54.7]} 28... Kd7 {[%clk 0:03:06]} 29. g5 {[%clk
0:02:49.2]} 29... hxg5 {[%clk 0:03:04.2]} 30. Bxg5 {[%clk 0:02:47.9]} 30... Rf5
{[%clk 0:03:03.4]} 31. f4 {[%clk 0:02:44.2]} 31... Rd5 {[%clk 0:03:00.9]} 32.
Re7+ {[%clk 0:02:42]} 32... Kc8 {[%clk 0:02:57.9]} 33. Rxg7 {[%clk 0:02:38.7]}
33... Rd2+ {[%clk 0:02:56.8]} 34. Kg3 {[%clk 0:02:37.9]} 34... Rxc2 {[%clk
0:02:56.2]} 35. Bf6 {[%clk 0:02:35.5]} 35... d5 {[%clk 0:02:50.7]} 36. Ra7
{[%clk 0:02:30.9]} 36... c5 {[%clk 0:02:46.1]} 37. Rxa6 {[%clk 0:02:29.3]} 37...
d4 {[%clk 0:02:45.6]} 38. Rd6 {[%clk 0:02:21.3]} 38... Rxb2 {[%clk 0:02:40.8]}
39. Rc6+ {[%clk 0:02:19.1]} 39... Kd7 {[%clk 0:02:39.1]} 40. Rxc5 {[%clk
0:02:17.3]} 40... Rxa2 {[%clk 0:02:37]} 41. Bxd4 {[%clk 0:02:15]} 41... Ke6
{[%clk 0:02:35.5]} 42. Be5 {[%clk 0:02:11.4]} 42... Ra3+ {[%clk 0:02:34]} 43.
Kg4 {[%clk 0:02:09.4]} 43... Ra7 {[%clk 0:02:32.3]} 44. Rc6+ {[%clk 0:02:08.3]}
44... Kd7 {[%clk 0:02:30.7]} 45. Rg6 {[%clk 0:02:06.3]} 45... Ke8 {[%clk
0:02:27.9]} 46. Kg5 {[%clk 0:02:05.3]} 46... Rf7 {[%clk 0:02:26.1]} 47. f5
{[%clk 0:02:03.5]} 47... Kf8 {[%clk 0:02:24.6]} 48. f6 {[%clk 0:01:52]} 48...
Ke8 {[%clk 0:02:21.2]} 49. Rg8+ {[%clk 0:01:48.2]} 49... Rf8 {[%clk 0:02:21.1]}
50. Rxf8+ {[%clk 0:01:44.4]} 50... Kxf8 {[%clk 0:02:21]} 51. Kg6 {[%clk
0:01:42.6]} 51... Kg8 {[%clk 0:02:19.8]} 52. f7+ {[%clk 0:01:40.6]} 52... Kf8
{[%clk 0:02:19.2]} 53. Bd6# {[%clk 0:01:39.5]} 1-0

[Event "Live Chess"]
[Site "Chess.com"]
[Date "2024.06.02"]
[Round "-"]
[White "oscalik"]
[Black "booktrunk"]
[Result "1-0"]
[WhiteElo "2285"]
[BlackElo "1485"]
[TimeControl "300"]
[EndTime "16:12:27 PDT"]
[Termination "oscalik won by resignation"]

1. e4 {[%clk 0:04:57.1]} 1... b6 {[%clk 0:04:54]} 2. d4 {[%clk 0:04:55.3]} 2...
Bb7 {[%clk 0:04:51.1]} 3. Nc3 {[%clk 0:04:53]} 3... e6 {[%clk 0:04:49]} 4. f4
{[%clk 0:04:51.1]} 4... h6 {[%clk 0:04:45.6]} 5. Nf3 {[%clk 0:04:48.9]} 5... Bb4
{[%clk 0:04:40.2]} 6. Bd3 {[%clk 0:04:47.2]} 6... Nf6 {[%clk 0:04:38.6]} 7. Qe2
{[%clk 0:04:43.3]} 7... O-O {[%clk 0:04:35.4]} 8. Bd2 {[%clk 0:04:41.5]} 8...
Bxc3 {[%clk 0:04:30.5]} 9. Bxc3 {[%clk 0:04:39.7]} 9... d6 {[%clk 0:04:30]} 10.
Rg1 {[%clk 0:04:36.4]} 10... Nbd7 {[%clk 0:04:28.9]} 11. g4 {[%clk 0:04:34.3]}
11... Nh7 {[%clk 0:04:27.3]} 12. h4 {[%clk 0:04:31.9]} 12... f6 {[%clk
0:04:14.9]} 13. O-O-O {[%clk 0:04:27.9]} 13... Kf7 {[%clk 0:04:13.5]} 14. e5
{[%clk 0:04:25.2]} 14... dxe5 {[%clk 0:04:11.7]} 15. Bxh7 {[%clk 0:04:23.5]}
15... Qe7 {[%clk 0:04:08]} 16. fxe5 {[%clk 0:04:21.7]} 16... Ke8 {[%clk
0:04:04.2]} 17. Be4 {[%clk 0:04:19]} 17... Bxe4 {[%clk 0:04:01.9]} 18. Qxe4
{[%clk 0:04:18.9]} 18... Rb8 {[%clk 0:04:00.8]} 19. Rge1 {[%clk 0:04:13.9]}
19... Kd8 {[%clk 0:03:58.9]} 20. Kb1 {[%clk 0:04:12]} 20... Kc8 {[%clk
0:03:54.9]} 21. exf6 {[%clk 0:04:11.3]} 21... Rxf6 {[%clk 0:03:51.1]} 22. d5
{[%clk 0:04:07.3]} 22... Nc5 {[%clk 0:03:43.3]} 23. Bxf6 {[%clk 0:04:02.9]}
23... Nxe4 {[%clk 0:03:40.6]} 24. Bxe7 {[%clk 0:04:01.5]} 1-0

[Event "Live Chess"]
[Site "Chess.com"]
[Date "2024.06.02"]
[Round "-"]
[White "NebodarMatevich"]
[Black "Queensandpawns"]
[Result "0-1"]
[WhiteElo "1562"]
[BlackElo "2310"]
[TimeControl "300"]
[EndTime "16:12:46 PDT"]
[Termination "Queensandpawns won by resignation"]

1. e4 {[%clk 0:04:59.8]} 1... d5 {[%clk 0:04:57.1]} 2. exd5 {[%clk 0:04:58.8]}
2... c6 {[%clk 0:04:57]} 3. dxc6 {[%clk 0:04:57.6]} 3... Nxc6 {[%clk 0:04:56.8]}
4. Nf3 {[%clk 0:04:55.3]} 4... e5 {[%clk 0:04:50]} 5. Bb5 {[%clk 0:04:51.5]}
5... e4 {[%clk 0:04:37.5]} 6. Bxc6+ {[%clk 0:04:48.2]} 6... bxc6 {[%clk
0:04:35.5]} 7. Ng1 {[%clk 0:04:47.2]} 7... Bc5 {[%clk 0:04:33.6]} 8. Qe2 {[%clk
0:04:46.1]} 8... Nf6 {[%clk 0:04:31.5]} 9. c3 {[%clk 0:04:43.7]} 9... O-O {[%clk
0:04:29.9]} 10. b4 {[%clk 0:04:43.1]} 10... Bb6 {[%clk 0:04:28.8]} 11. Nh3
{[%clk 0:04:41.6]} 11... Bg4 {[%clk 0:04:27.3]} 12. Qc4 {[%clk 0:04:21.4]} 12...
Re8 {[%clk 0:04:26]} 13. O-O {[%clk 0:04:20.5]} 13... Bxh3 {[%clk 0:04:18.9]}
14. gxh3 {[%clk 0:04:19.7]} 14... Qd7 {[%clk 0:04:18.8]} 15. d4 {[%clk
0:03:59.9]} 15... Qxh3 {[%clk 0:04:15]} 16. Be3 {[%clk 0:03:58.3]} 16... Bc7
{[%clk 0:04:13.3]} 0-1

[Event "Live Chess"]
[Site "Chess.com"]
[Date "2024.06.02"]
[Round "-"]
[White "KGreenGator"]
[Black "ACM42"]
[Result "0-1"]
[WhiteElo "1760"]
[BlackElo "2164"]
[TimeControl "300"]
[EndTime "16:13:12 PDT"]
[Termination "ACM42 won by resignation"]

1. c4 {[%clk 0:04:57.7]} 1... Nf6 {[%clk 0:04:57.3]} 2. Nc3 {[%clk 0:04:57.2]}
2... g6 {[%clk 0:04:56.7]} 3. d4 {[%clk 0:04:56.9]} 3... Bg7 {[%clk 0:04:56.2]}
4. e3 {[%clk 0:04:56.3]} 4... O-O {[%clk 0:04:55.7]} 5. Nf3 {[%clk 0:04:55.6]}
5... d6 {[%clk 0:04:54.8]} 6. Be2 {[%clk 0:04:54.3]} 6... Nbd7 {[%clk
0:04:52.9]} 7. O-O {[%clk 0:04:52.8]} 7... b6 {[%clk 0:04:52]} 8. e4 {[%clk
0:04:49.5]} 8... e5 {[%clk 0:04:46.6]} 9. d5 {[%clk 0:04:47.8]} 9... a5 {[%clk
0:04:43.3]} 10. a3 {[%clk 0:04:45.5]} 10... h5 {[%clk 0:04:39.5]} 11. Re1 {[%clk
0:04:39]} 11... Nh7 {[%clk 0:04:38.2]} 12. h4 {[%clk 0:04:01.4]} 12... Nc5
{[%clk 0:04:23.5]} 13. g3 {[%clk 0:02:05.1]} 13... a4 {[%clk 0:04:02.2]} 14. Be3
{[%clk 0:00:54]} 14... Nb3 {[%clk 0:03:32.8]} 15. Nxa4 {[%clk 0:00:31.4]} 15...
Nxa1 {[%clk 0:03:30.6]} 0-1